{"text_format":"1","workbook":"xlsx","n_sheets":3,"sheets":["Bestillingsskjema","Kontaktliste","Delkontrakter"],"not_rendered":{"charts":0,"images":0,"macros":1,"external_links":0,"defined_names":2,"comments":0,"pivot_tables":0},"unopened":[],"bounds":{"document_bytes":16777216,"sheet_cells":100000,"rows_first":2000,"rows_last":500,"rows_between":2000,"halvings":0,"cell_chars":16384,"cell_head_chars":4096},"cells_cut":0,"cells_raw":0,"read":"whole","date_system":"1900"}

{"sheet":"Bestillingsskjema","index":0,"n_rows":23,"n_cols":6,"rows_kept":23,"cut":false,"hidden":false,"merged":[]}
[]
[]
[]
[]
[]
[null,null,null,"Husk å avklare avrop med kontaktperson for din region - se nettside: https://www.sykehusinnkjop.no/nasjonale-avtaler/digitale-laringsprodukter/#slik-brukes-avtalen"]
[]
[]
[null,null,null,"Velg delkontrakt ↓"]
[null,"Nr.","ID","Delområde B - Video"]
[]
[]
[null,null,null,"Leverandør","Epost","Avtalenummer "]
[null,1,{"$f":"B14&$D$10","v":"1Delområde B - Video"},{"$f":"IFERROR(VLOOKUP($C14,kontaktliste,3,FALSE),\"\")","v":"Headspin AS"},{"$f":"IFERROR(VLOOKUP($C14,kontaktliste,8,FALSE),\"\")","v":"Office@headspin.no"},{"$f":"IFERROR(VLOOKUP($C14,kontaktliste,9,FALSE),\"\")","v":"2026/80788"}]
[null,2,{"$f":"B15&$D$10","v":"2Delområde B - Video"},"Høyskolen Kristiania","leverandor@kristiania.no","2026/80789"]
[null,3,"3Delområde B - Video","Mediafarm AS","post@mediafarm.no","2026/80792"]
[null,4,"4Delområde B - Video","Plott AS","knut@plott.as","2026/80794"]
[null,5,"5Delområde B - Video","Red Ant AS","joachim@redant.no","2026/80796"]
[null,6,"6Delområde B - Video","Storyboard AS","info@storyboard.no","2026/80800"]
[null,7,"7Delområde B - Video","Task Alliance AS","post@task.no","2026/80802"]
[null,8,"8Delområde B - Video","Try AS","Post@try.no","2026/80803"]
[null,9,"9Delområde B - Video","","",""]
[null,10,"10Delområde B - Video","","",""]

{"sheet":"Kontaktliste","index":1,"n_rows":44,"n_cols":10,"rows_kept":44,"cut":false,"hidden":true,"merged":[]}
[]
[null,null,"KONTAKTOPPLYSNINGER AVTALELEVERANDØRER - Digitale læringsprodukter"]
[]
[null,null,"Alle RHF"]
[]
["Nr.","ID","Delområde","Leverandør","Org.nr.","Kontaktperson","Telefonnummer","E-post","E-post for avrop","Avtalenummer"]
[1,{"$f":"A7&C7","v":"1Delområde A - E-læring"},"Delområde A - E-læring","Fagfilmforlaget AS",926646567,"Tor Arne Bjerke",97672708,"tor@fagfilmforlaget.no ","post@fagfilmforlaget.no","2026/80782"]
[2,{"$f":"A8&C8","v":"2Delområde A - E-læring"},"Delområde A - E-læring","Headspin AS",914036534,"Andreas Wivestad",95940434,"andreas@headspin.no","Office@headspin.no","2026/80788"]
[3,"3Delområde A - E-læring","Delområde A - E-læring","Mediafarm AS",976964403,"Thomas Wilhelm Holm",47752749,"thomas@mediafarm.no","post@mediafarm.no","2026/80792"]
[4,"4Delområde A - E-læring","Delområde A - E-læring","NKI Kompetanse",919855479,"Hege Ulveland",95735183,"hege.ulveland@nki.no","Avrop@nki.no","2026/80107"]
[5,"5Delområde A - E-læring","Delområde A - E-læring","Plott AS",920458513,"Knut Sundby",91705551,"knut@plott.as","knut@plott.as","2026/80794"]
[6,"6Delområde A - E-læring","Delområde A - E-læring","Storyboard AS",987825669,"Karl Fredrik Agnalt",90506128,"karl@storyboard.no","info@storyboard.no","2026/80800"]
[7,"7Delområde A - E-læring","Delområde A - E-læring","Task Alliance AS",987655208,"Stig Robert Larsen",98296007,"Stig.robert@task.no ","post@task.no","2026/80802"]
[8,"8Delområde A - E-læring","Delområde A - E-læring","Try AS",980129942,"Sindre Beyer",90992078,"Sindre.beyer@try.no","Post@try.no","2026/80803"]
[9,"9Delområde A - E-læring","Delområde A - E-læring","Zoaring AS",919670207,"Henrik Jesman Sunde",95888024,"henrik.jesman@zoaring.com ","contact@zoaring.com","2026/80806"]
[1,"1Delområde B - Video","Delområde B - Video","Headspin AS",914036534,"Andreas Wivestad",95940434,"andreas@headspin.no","Office@headspin.no","2026/80788"]
[2,"2Delområde B - Video","Delområde B - Video","Høyskolen Kristiania",954831604,"Heidi Åberg",99507797,"Heidi.aberg@kristiania.no","leverandor@kristiania.no","2026/80789"]
[3,"3Delområde B - Video","Delområde B - Video","Mediafarm AS",976964403,"Thomas Wilhelm Holm",47752749,"thomas@mediafarm.no","post@mediafarm.no","2026/80792"]
[4,"4Delområde B - Video","Delområde B - Video","Plott AS",920458513,"Knut Sundby",91705551,"knut@plott.as","knut@plott.as","2026/80794"]
[5,"5Delområde B - Video","Delområde B - Video","Red Ant AS",914750229,"Joachim Thingnes",97040709,"joachim@redant.no","joachim@redant.no","2026/80796"]
[6,"6Delområde B - Video","Delområde B - Video","Storyboard AS",987825669,"Karl Fredrik Agnalt",90506128,"karl@storyboard.no","info@storyboard.no","2026/80800"]
[7,"7Delområde B - Video","Delområde B - Video","Task Alliance AS",987655208,"Stig Robert Larsen",98296007,"Stig.robert@task.no ","post@task.no","2026/80802"]
[8,"8Delområde B - Video","Delområde B - Video","Try AS",980129942,"Sindre Beyer",90992078,"Sindre.beyer@try.no","Post@try.no","2026/80803"]
[1,"1Delområde C - Animasjon og 3D","Delområde C - Animasjon og 3D","Breach AS",918166769,"Marius Thorvaldsen",93258279,"marius@breachvr.com ","contact@breachvr.com","2026/80761"]
[2,"2Delområde C - Animasjon og 3D","Delområde C - Animasjon og 3D","Headspin AS",914036534,"Andreas Wivestad",95940434,"andreas@headspin.no","Office@headspin.no","2026/80788"]
[3,"3Delområde C - Animasjon og 3D","Delområde C - Animasjon og 3D","Mediafarm AS",976964403,"Thomas Wilhelm Holm",47752749,"thomas@mediafarm.no","post@mediafarm.no","2026/80792"]
[4,"4Delområde C - Animasjon og 3D","Delområde C - Animasjon og 3D","Plott AS",920458513,"Knut Sundby",91705551,"knut@plott.as","knut@plott.as","2026/80794"]
[5,"5Delområde C - Animasjon og 3D","Delområde C - Animasjon og 3D","Red Ant AS",914750229,"Joachim Thingnes",97040709,"joachim@redant.no","joachim@redant.no","2026/80796"]
[6,"6Delområde C - Animasjon og 3D","Delområde C - Animasjon og 3D","Storyboard AS",987825669,"Karl Fredrik Agnalt",90506128,"karl@storyboard.no","info@storyboard.no","2026/80800"]
[7,"7Delområde C - Animasjon og 3D","Delområde C - Animasjon og 3D","Task Alliance AS",987655208,"Stig Robert Larsen",98296007,"Stig.robert@task.no ","post@task.no","2026/80802"]
[8,"8Delområde C - Animasjon og 3D","Delområde C - Animasjon og 3D","Try AS",980129942,"Sindre Beyer",90992078,"Sindre.beyer@try.no","Post@try.no","2026/80803"]
[9,"9Delområde C - Animasjon og 3D","Delområde C - Animasjon og 3D","Visual Lab AS",919626496,"Tor Martin Austad",41688021,"austad@visuallab.no","austad@visuallab.no","2026/80780"]
[10,"10Delområde C - Animasjon og 3D","Delområde C - Animasjon og 3D","Zoaring AS",919670207,"Henrik Jesman Sunde",95888024,"henrik.jesman@zoaring.com ","contact@zoaring.com","2026/80806"]
[1,"1Delområde D - XR (VR og AR)","Delområde D - XR (VR og AR)","Breach AS",918166769,"Marius Thorvaldsen",93258279,"marius@breachvr.com ","contact@breachvr.com","2026/80761"]
[2,"2Delområde D - XR (VR og AR)","Delområde D - XR (VR og AR)","Fornix AS",825622152,"Markus Haraldseid",41617176,"markus@fornixvr.com ","hello@fornixvr.com","2026/80784"]
[3,"3Delområde D - XR (VR og AR)","Delområde D - XR (VR og AR)","Headspin AS",914036534,"Andreas Wivestad",95940434,"andreas@headspin.no","Office@headspin.no","2026/80788"]
[4,"4Delområde D - XR (VR og AR)","Delområde D - XR (VR og AR)","Making View AS",989636790,"Olve Storlykken",92236846,"os@makingview.com","Post@makingview.com","2026/80791"]
[5,"5Delområde D - XR (VR og AR)","Delområde D - XR (VR og AR)","Mediafarm AS",976964403,"Thomas Wilhelm Holm",47752749,"thomas@mediafarm.no","post@mediafarm.no","2026/80792"]
[1,"1Delområde E - Spill og gamification","Delområde E - Spill og gamification","Breach AS",918166769,"Marius Thorvaldsen",93258279,"marius@breachvr.com ","contact@breachvr.com","2026/80761"]
[2,"2Delområde E - Spill og gamification","Delområde E - Spill og gamification","Fornix AS",825622152,"Markus Haraldseid",41617176,"markus@fornixvr.com ","hello@fornixvr.com","2026/80784"]
[3,"3Delområde E - Spill og gamification","Delområde E - Spill og gamification","Headspin AS",914036534,"Andreas Wivestad",95940434,"andreas@headspin.no","Office@headspin.no","2026/80788"]
[4,"4Delområde E - Spill og gamification","Delområde E - Spill og gamification","Mediafarm AS",976964403,"Thomas Wilhelm Holm",47752749,"thomas@mediafarm.no","post@mediafarm.no","2026/80792"]
[5,"5Delområde E - Spill og gamification","Delområde E - Spill og gamification","Task Alliance AS",987655208,"Stig Robert Larsen",98296007,"Stig.robert@task.no ","post@task.no","2026/80802"]
[6,"6Delområde E - Spill og gamification","Delområde E - Spill og gamification","Zoaring AS",919670207,"Henrik Jesman Sunde",95888024,"henrik.jesman@zoaring.com ","contact@zoaring.com","2026/80806"]

{"sheet":"Delkontrakter","index":2,"n_rows":6,"n_cols":1,"rows_kept":6,"cut":false,"hidden":true,"merged":[]}
["Delområde"]
["Delområde A - E-læring"]
["Delområde B - Video"]
["Delområde C - Animasjon og 3D"]
["Delområde D - XR (VR og AR)"]
["Delområde E - Spill og gamification"]